bitfinex-derivatives/quotes_SOLF0:USTF0_20251211
["timestamp","ask_amount","ask_price","bid_price","bid_amount"]
[1765469962538,0.05510151,130.38,130.35,3.42657297]
[1765469963035,0.05510151,130.38,130.36,3.37]
[1765469963633,10.0192,130.44,130.38,6.9022]
[1765469963828,3.12,130.44,130.39,3.37]
[1765469964136,3.12,130.44,130.4,3.37]
[1765469964337,3.12,130.44,130.37,3.37]
[1765469964536,3.17801303,130.42,130.39,0.05679398]
[1765469964736,3.12,130.37,130.33,3.37]
[1765469965239,6.9015,130.4,130.33,3.37]
[1765469965538,3.12,130.41,130.33,3.37]
[1765469965733,0.05749979,130.38,130.35,3.42822403]
[1765469967026,0.05749979,130.38,130.36,3.13]
[1765469967831,0.05749979,130.38,130.36,10.0332]
[1765469968028,0.05749979,130.38,130.37,3.13]
[1765469969634,0.05749979,130.38,130.35,3.32822403]
[1765469971027,0.05749979,130.38,130.36,3.27]
[1765469972637,0.05749979,130.38,130.35,3.32822403]
[1765469973642,0.05749979,130.38,130.35,10.23192403]
[1765469973840,0.05749979,130.38,130.36,3.27]
[1765469974234,3.44749979,130.38,130.35,0.05822403]
[1765469974439,3.44749979,130.38,130.35,3.32822403]
[1765469975031,0.05749979,130.38,130.35,3.32822403]
[1765469975236,0.05749979,130.38,130.36,3.27]
[1765469976644,0.05749979,130.38,130.36,10.1731]
[1765469976845,0.05749979,130.38,130.37,3.27]
[1765469978740,0.05749979,130.38,130.36,10.1731]
[1765469978941,0.05749979,130.38,130.37,3.27]
[1765469980046,0.05749979,130.38,130.36,6.9031]
[1765469980047,3.39,130.44,130.36,3.27]
[1765469981040,3.44230067,130.41,130.39,0.05640844]
[1765469981740,3.39,130.4,130.33,3.27]
[1765469981945,3.39,130.4,130.31,138.8323391]
[1765469981946,3.39,130.4,130.32,3.27]
[1765469982149,3.39,130.37,130.33,6.9048]
[1765469982746,0.05761553,130.36,130.34,0.05576528]
[1765469983048,0.05761553,130.36,130.3,62.86236528]
[1765469983945,3.44761553,130.36,130.32,0.05531843]
[1765469986053,3.39,130.35,130.32,0.05531843]
[1765469986451,3.44761553,130.36,130.32,3.32531843]
[1765469986656,0.05761553,130.36,130.32,3.32531843]
[1765469987951,3.44761553,130.36,130.32,0.05531843]
[1765469988353,3.39,130.35,130.32,0.05531843]
[1765469988855,3.47761553,130.36,130.32,3.44531843]
[1765469989647,3.47761553,130.36,130.33,3.39]
[1765469990254,3.47761553,130.36,130.32,6.96061843]
[1765469990454,3.47761553,130.36,130.32,10.35061843]
[1765469990646,3.47761553,130.36,130.32,3.44531843]
[1765469992246,3.47761553,130.36,130.33,3.39]
[1765469992650,3.47761553,130.36,130.32,6.96061843]
[1765469992850,3.47761553,130.36,130.32,3.44531843]
[1765469993058,3.47761553,130.36,130.32,0.05531843]
[1765469994958,3.42,130.35,130.32,0.05531843]
[1765469998260,0.05761553,130.36,130.32,3.44531843]
[1765469998952,3.47761553,130.36,130.32,3.44531843]
[1765469999957,3.47761553,130.36,130.32,0.05531843]
[1765470000662,10.38121553,130.36,130.32,3.44531843]
[1765470000862,3.42,130.35,130.32,0.05531843]
[1765470002455,3.42,130.34,130.26,3.39]
[1765470002653,3.42,130.3,130.26,3.39]
[1765470003257,3.42,130.29,130.21,25.99207994]
[1765470003450,3.42,130.25,130.24,0.05259008]
[1765470003855,0.05229155,130.26,130.24,0.05259008]
[1765470004363,3.47229155,130.26,130.24,0.05259008]
[1765470005560,0.05229155,130.26,130.24,0.05259008]
[1765470005955,0.05229155,130.26,130.24,3.44259008]
[1765470006150,0.05229155,130.26,130.24,10.35209008]
[1765470006464,3.42,130.3,130.24,0.05259008]
[1765470006668,3.42,130.3,130.22,11.23148001]
[1765470007051,10.3272,130.29,130.23,6.9101]
[1765470007254,3.46990919,130.27,130.25,0.05784016]
[1765470007461,3.42,130.27,130.25,0.05784016]
[1765470007666,3.47479595,130.27,130.25,0.05784016]
[1765470009463,10.38309595,130.27,130.25,0.05784016]
[1765470009863,6.96309595,130.27,130.25,0.05784016]
[1765470010364,0.05479595,130.27,130.25,3.44784016]
[1765470010956,10.3264,130.31,130.26,3.39]
[1765470011151,3.42,130.3,130.25,3.44784016]
[1765470011357,3.42,130.3,130.25,3.39]
[1765470011761,6.9057,130.32,130.25,10.2988]
[1765470011956,68.66,130.34,130.28,3.39]
[1765470012164,65.24,130.34,130.28,3.39]
[1765470012362,68.66,130.34,130.28,3.39]
[1765470012558,3.42,130.33,130.28,3.39]
[1765470012961,65.24,130.34,130.28,3.39]
[1765470013161,0.05013997,130.32,130.3,0.05201982]
[1765470013464,0.05013997,130.32,130.3,3.44201982]
[1765470014464,0.05013997,130.32,130.3,0.05201982]
[1765470014465,3.17013997,130.32,130.3,0.05201982]
[1765470015870,0.05013997,130.32,130.3,10.30841982]
[1765470016165,0.05013997,130.32,130.3,0.05201982]
[1765470016166,3.17013997,130.32,130.3,0.05201982]
[1765470018461,0.00013997,130.32,130.3,10.30841982]
[1765470018661,3.34,130.38,130.32,3.41]
[1765470018871,3.34,130.38,130.31,7.84148001]
[1765470019068,3.34,130.38,130.3,6.9065]
[1765470019575,3.34,130.38,130.3,10.3165]
[1765470019777,3.34,130.34,130.33,0.05125536]
[1765470021671,3.3929531,130.35,130.33,0.05125536]
[1765470022877,3.34,130.33,130.25,107.4733]
[1765470023069,3.34,130.33,130.24,11.25148001]
[1765470023775,0.05577238,130.3,130.27,3.46110062]
[1765470025277,3.39577238,130.3,130.27,0.05110062]
[1765470026174,0.05577238,130.3,130.27,3.46110062]
[1765470027773,3.39577238,130.3,130.27,3.46110062]
[1765470029086,0.05577238,130.3,130.27,3.46110062]
[1765470030877,3.39577238,130.3,130.27,0.05110062]
[1765470033085,10.30267238,130.3,130.27,0.05110062]
[1765470033286,3.34,130.29,130.27,0.05110062]
[1765470036087,0.05577238,130.3,130.27,3.46110062]
[1765470036289,68.56,130.34,130.29,3.41]
[1765470036589,68.56,130.34,130.31,3.41]
[1765470036882,3.34,130.37,130.31,3.41]
[1765470037086,3.34,130.36,130.31,3.41]
[1765470037394,3.38989279,130.35,130.32,0.0523748]
[1765470037881,10.29399279,130.35,130.32,0.0523748]
[1765470038281,3.34,130.34,130.32,0.0523748]
[1765470039383,3.34,130.33,130.32,0.0523748]
[1765470039584,10.2447,130.34,130.32,0.0523748]
[1765470039988,0.04989279,130.35,130.32,3.4623748]
[1765470041290,0.04989279,130.35,130.33,3.41]
[1765470043692,3.34,130.43,130.35,3.41]
[1765470044393,3.34,130.43,130.37,3.41]
[1765470044698,0.05739611,130.41,130.39,0.05269851]
[1765470045398,3.39739611,130.41,130.39,0.05269851]
[1765470045999,0.05739611,130.41,130.39,0.05269851]
[1765470047190,3.39739611,130.41,130.39,0.05269851]
[1765470048290,0.05739611,130.41,130.39,3.46269851]
[1765470049592,3.17739611,130.41,130.39,0.05269851]
[1765470051596,0.05739611,130.41,130.39,3.30269851]
[1765470052802,0.05739611,130.41,130.39,10.20429851]
[1765470053002,3.12,130.48,130.4,3.25]
[1765470053591,3.12,130.47,130.4,3.25]
[1765470053993,6.8971,130.48,130.4,3.25]
[1765470053994,3.17080578,130.45,130.42,0.05595179]
[1765470056098,3.17080578,130.45,130.42,3.30595179]
[1765470056602,0.05080578,130.45,130.42,3.30595179]
[1765470057002,3.12,130.48,130.42,3.30595179]
[1765470057396,65.2,130.5,130.42,3.30595179]
[1765470057601,3.12,130.49,130.43,3.25]
[1765470057997,0.05315981,130.47,130.45,0.05605105]
[1765470058595,0.05315981,130.47,130.45,3.30605105]
[1765470058902,3.12,130.53,130.46,3.25]
[1765470059700,3.12,130.51,130.43,3.25]
[1765470059903,3.16287409,130.48,130.46,0.05824478]
[1765470060208,0.04287409,130.48,130.46,3.30824478]
[1765470060502,3.12,130.54,130.48,3.25]
[1765470061102,107.1941,130.6,130.49,3.25]
[1765470061103,3.12,130.6,130.49,3.25]
[1765470061302,110.3291,130.58,130.49,3.25]
[1765470061506,3.12,130.55,130.52,0.05798994]
[1765470061693,3.12,130.53,130.52,0.05798994]
[1765470062300,3.12,130.55,130.52,0.05798994]
[1765470062898,3.12,130.53,130.52,0.05798994]
[1765470063194,3.12,130.53,130.45,3.25]
[1765470064098,0.05546862,130.5,130.48,3.30861413]
[1765470065004,0.05546862,130.5,130.48,10.20541413]
[1765470065200,0.05546862,130.5,130.49,3.25]
[1765470066808,0.05546862,130.5,130.48,3.30861413]
[1765470067007,3.17546862,130.5,130.48,0.05861413]
[1765470068115,3.12,130.49,130.41,3.25]
[1765470068402,3.12,130.47,130.37,3.25]
[1765470068609,3.12,130.45,130.37,3.25]
[1765470068814,3.12,130.45,130.39,6.9016]
[1765470069105,0.05508451,130.43,130.41,0.05234458]
[1765470069612,0.05508451,130.43,130.41,3.30234458]
[1765470070907,0.05508451,130.43,130.41,10.20294458]
[1765470071110,0.05508451,130.43,130.41,3.30234458]
[1765470071303,3.17508451,130.43,130.41,0.05234458]
[1765470071706,0.05508451,130.43,130.41,0.05234458]
[1765470071906,0.05508451,130.43,130.41,3.30234458]
[1765470073015,3.12,130.48,130.41,10.20284458]
[1765470073309,3.12,130.48,130.41,10.1505]
[1765470073502,3.35,130.51,130.41,3.25]
[1765470074016,0.05566703,130.47,130.45,3.20836479]
[1765470075114,0.05566703,130.47,130.45,0.05836479]
[1765470075812,0.05566703,130.47,130.45,3.20836479]
[1765470077912,3.40566703,130.47,130.45,0.05836479]
[1765470079003,10.30336703,130.47,130.45,0.05836479]
[1765470079514,3.4,130.46,130.45,0.05836479]
[1765470081112,6.95336703,130.47,130.45,0.05836479]
[1765470082307,0.05566703,130.47,130.45,3.33836479]
[1765470084114,65.16,130.53,130.45,3.33836479]
[1765470084317,65.16,130.53,130.45,3.28]
[1765470084518,6.8951,130.52,130.47,6.8974]
[1765470084813,6.8951,130.52,130.48,3.28]
[1765470085118,3.4,130.54,130.49,0.05401807]
[1765470085313,3.4,130.52,130.49,0.05401807]
[1765470085612,3.4,130.53,130.49,0.05401807]
[1765470086318,6.8955,130.51,130.49,0.05401807]
[1765470086618,10.2955,130.51,130.49,0.05401807]
[1765470087016,3.4,130.5,130.49,0.05401807]
[1765470090005,72.0355,130.51,130.49,0.05401807]
[1765470090203,75.4355,130.51,130.49,0.05401807]
[1765470091007,68.54,130.51,130.49,0.05401807]
[1765470091315,6.8959,130.5,130.49,0.05401807]
[1765470091716,10.2959,130.5,130.49,0.05401807]
[1765470093408,65.14,130.51,130.49,0.05401807]
[1765470093720,68.54,130.51,130.49,0.05401807]
[1765470093919,3.4,130.53,130.49,3.33401807]
[1765470094113,3.4,130.53,130.49,10.23041807]
[1765470095012,65.14,130.55,130.49,10.23041807]
[1765470095013,65.14,130.55,130.51,3.28]
[1765470095223,65.14,130.55,130.52,3.33834295]
[1765470095612,68.54,130.55,130.52,0.05834295]
[1765470095812,3.4,130.54,130.52,0.05834295]
[1765470096022,10.294,130.54,130.52,0.05834295]
[1765470096219,3.4,130.53,130.52,0.05834295]
[1765470096712,107.1781,130.62,130.52,3.33834295]
[1765470096918,3.4,130.58,130.52,3.33834295]
[1765470097317,3.4,130.55,130.52,0.05834295]
[1765470097711,10.2934,130.55,130.52,0.05834295]
[1765470097912,3.4,130.54,130.52,0.05834295]
[1765470098912,3.4,130.53,130.52,0.05834295]
[1765470103620,3.4,130.53,130.45,30.1035967]
[1765470103826,3.4,130.53,130.46,6.8977]
[1765470104134,3.4,130.53,130.45,3.28]
[1765470104533,0.05429297,130.5,130.48,3.32937236]
[1765470104831,0.04853456,130.5,130.48,3.32937236]
[1765470108738,0.04853456,130.5,130.49,6.60533518]
[1765470109941,0.04853456,130.5,130.48,3.36937236]
[1765470110142,0.04853456,130.5,130.49,3.32]
[1765470114857,0.04853456,130.5,130.48,3.36937236]
[1765470117650,3.30853456,130.5,130.48,0.04937236]
[1765470117861,0.04853456,130.5,130.48,0.04937236]
[1765470118769,0.04853456,130.5,130.48,3.17937236]
[1765470120350,0.04853456,130.5,130.48,10.07607236]
[1765470120557,0.04853456,130.5,130.49,3.13]
[1765470121562,3.21,130.55,130.51,3.13]
[1765470122570,3.21,130.55,130.52,3.18586145]
[1765470122763,3.21,130.56,130.52,3.18586145]
[1765470124070,10.1016,130.59,130.53,3.13]
[1765470124274,10.1016,130.59,130.55,3.18814093]
[1765470124571,3.21,130.6,130.55,3.18814093]
[1765470125269,3.21,130.59,130.55,3.18814093]
[1765470125569,3.21,130.59,130.55,0.05814093]
[1765470126270,10.1018,130.58,130.55,0.05814093]
[1765470126471,3.21,130.57,130.55,0.05814093]
[1765470126965,10.1023,130.57,130.55,0.05814093]
[1765470127170,3.21,130.56,130.55,0.05814093]
[1765470127370,3.21,130.56,130.49,22.13528313]
[1765470127565,107.2173,130.57,130.5,3.13]
[1765470127566,3.21,130.57,130.5,3.13]
[1765470128366,0.04985917,130.55,130.52,0.05460723]
[1765470128567,3.25985917,130.55,130.52,0.05460723]
[1765470130076,6.8938,130.54,130.52,3.18460723]
[1765470130272,0.04985917,130.55,130.52,3.18460723]
[1765470130774,6.94315917,130.55,130.52,3.18460723]
[1765470131074,3.21,130.54,130.52,0.05460723]
[1765470131274,6.8939,130.54,130.52,3.18460723]
[1765470131464,0.04985917,130.55,130.52,3.18460723]
[1765470132660,0.04985917,130.55,130.54,3.13]
[1765470133470,3.25985917,130.55,130.52,3.18460723]
[1765470133670,3.25985917,130.55,130.52,0.05460723]
[1765470134065,10.15355917,130.55,130.52,0.05460723]
[1765470134271,6.94355917,130.55,130.52,3.18460723]
[1765470134879,10.104,130.54,130.52,0.05460723]
[1765470135174,6.894,130.54,130.52,3.18460723]
[1765470135873,6.894,130.54,130.52,0.05460723]
[1765470136571,0.04985917,130.55,130.54,3.13]
[1765470138975,65.12,130.6,130.55,3.38]
[1765470139271,65.12,130.6,130.58,3.38]
[1765470139580,6.5940004,130.63,130.58,3.38]
[1765470140079,3.33394268,130.62,130.59,0.05127287]
[1765470140574,3.31,130.6,130.59,0.05127287]
[1765470141473,6.5940004,130.6,130.59,0.05127287]
[1765470141676,4.85,130.6,130.59,0.05127287]
[1765470141874,6.5940004,130.6,130.59,0.05127287]
[1765470142376,3.31,130.58,130.55,3.38]
[1765470143275,3.36657732,130.58,130.55,3.43101747]
[1765470143482,3.36657732,130.58,130.55,6.94431747]
[1765470143676,3.36657732,130.58,130.55,10.32431747]
[1765470143876,3.36657732,130.58,130.55,3.43101747]
[1765470144386,10.25867732,130.58,130.55,0.05101747]
[1765470144682,3.31,130.57,130.55,0.05101747]
[1765470145180,10.2023,130.57,130.55,0.05101747]
[1765470145382,3.31,130.56,130.55,0.05101747]
[1765470149677,68.41,130.56,130.55,0.05101747]
[1765470149876,3.31,130.54,130.5,26.18749941]
[1765470150184,3.31,130.54,130.51,3.38]
[1765470150989,3.31,130.54,130.51,3.42993728]
[1765470150990,3.36225817,130.54,130.51,3.42993728]
[1765470151184,3.36225817,130.54,130.51,0.04993728]
[1765470151486,3.31,130.52,130.51,0.04993728]
[1765470154287,68.41,130.52,130.51,0.04993728]
[1765470155081,6.8966,130.49,130.45,3.38]
[1765470155684,3.31,130.48,130.44,3.38]
[1765470156191,0.05869048,130.47,130.45,0.05237028]
[1765470156393,6.95629048,130.47,130.45,0.05237028]
[1765470157291,3.31,130.46,130.45,0.05237028]
[1765470158994,3.31,130.45,130.41,3.38]
[1765470159490,3.31,130.43,130.38,3.38]
[1765470159684,6.9008,130.41,130.38,3.38]
[1765470160089,0.05541005,130.41,130.38,3.42855364]
[1765470160285,6.899,130.45,130.4,3.38]
[1765470160488,10.209,130.45,130.4,3.38]
[1765470161494,0.0503917,130.44,130.42,3.38]
[1765470162596,6.9495917,130.44,130.41,3.43261229]
[1765470162991,0.0503917,130.44,130.41,3.43261229]
[1765470163692,3.3603917,130.44,130.41,0.05261229]
[1765470163893,0.0503917,130.44,130.41,3.43261229]
[1765470164893,6.9496917,130.44,130.41,3.43261229]
[1765470165689,0.0503917,130.44,130.41,10.33331229]
[1765470165890,0.0503917,130.44,130.42,3.38]
[1765470166485,0.0503917,130.44,130.43,3.38]
[1765470168202,0.0503917,130.44,130.42,10.28]
[1765470168399,0.0503917,130.44,130.42,3.38]
[1765470171293,3.4103917,130.44,130.41,0.05261229]
[1765470172504,6.8997,130.43,130.41,0.05261229]
[1765470173104,3.36,130.43,130.41,0.05261229]
[1765470175403,10.2598,130.43,130.41,0.05261229]
[1765470175605,3.36,130.42,130.41,0.05261229]
[1765470177500,10.2602,130.42,130.41,0.05261229]
[1765470177699,10.2602,130.42,130.35,3.37]
[1765470177700,3.36,130.41,130.35,3.37]
[1765470177904,3.36,130.39,130.33,65.16]
[1765470178109,3.36,130.39,130.33,68.53]
[1765470178710,0.0494652,130.37,130.35,0.05693085]
[1765470179695,3.4094652,130.37,130.35,0.05693085]
[1765470180411,3.36,130.36,130.35,0.05693085]
[1765470180616,10.3123652,130.37,130.35,0.05693085]
[1765470180911,3.36,130.36,130.35,0.05693085]
[1765470181899,3.36,130.33,130.28,3.37]
[1765470182208,3.36,130.33,130.26,3.37]
[1765470182812,0.05460291,130.31,130.28,3.42511531]
[1765470183013,3.41460291,130.31,130.28,0.05511531]
[1765470184811,10.32080291,130.31,130.28,0.05511531]
[1765470185012,0.05460291,130.31,130.28,3.42511531]
[1765470185413,0.05460291,130.31,130.3,3.37]
[1765470185712,3.36,130.35,130.3,3.37]
[1765470185916,6.9037,130.36,130.31,6.9059]
[1765470186122,10.2637,130.36,130.32,3.37]
[1765470186615,10.264,130.35,130.31,3.37]
[1765470186918,0.05089622,130.34,130.32,3.42910894]
[1765470189214,0.00089622,130.34,130.32,3.42910894]
[1765470189413,6.9032,130.37,130.32,3.42910894]
[1765470190212,10.2635,130.36,130.32,3.42910894]
[1765470190407,3.41411071,130.36,130.32,3.42910894]
[1765470191621,0.05411071,130.36,130.32,3.42910894]
[1765470193210,0.05411071,130.36,130.34,3.25]
[1765470194617,3.45411071,130.36,130.32,3.30910894]
[1765470194813,6.9042,130.35,130.32,3.30910894]
[1765470196212,6.9046,130.34,130.32,3.30910894]
[1765470196623,6.9046,130.34,130.32,0.05910894]
[1765470197018,6.9046,130.34,130.32,3.30910894]
[1765470198421,3.45411071,130.36,130.32,3.30910894]
[1765470200526,3.24,130.35,130.32,0.05910894]
[1765470200820,3.24,130.35,130.32,3.44910894]
[1765470201712,3.24,130.35,130.32,0.05910894]
[1765470201918,6.9045,130.34,130.32,0.05910894]
[1765470202317,6.9045,130.34,130.32,3.44910894]
[1765470202722,6.9045,130.34,130.32,0.05910894]
[1765470203328,6.9045,130.34,130.32,3.44910894]
[1765470204024,6.95801071,130.36,130.32,3.44910894]
[1765470204223,0.05411071,130.36,130.32,3.44910894]
[1765470204624,0.05411071,130.36,130.35,10.2939]
[1765470205219,10.1406,130.42,130.36,10.2929]
[1765470205426,10.1406,130.42,130.37,3.39]
[1765470206024,3.24,130.41,130.37,3.39]
[1765470206230,0.05740027,130.4,130.38,0.05710917]
[1765470207935,0.05740027,130.4,130.38,3.44710917]
[1765470208842,0.05740027,130.4,130.38,10.34920917]
[1765470209541,0.05740027,130.4,130.39,3.39]
[1765470210038,65.2,130.44,130.41,3.39]
[1765470210232,3.24,130.44,130.41,3.39]
[1765470210432,3.24,130.44,130.4,6.9011]
[1765470210642,3.24,130.44,130.4,10.2911]
[1765470211336,0.05158703,130.43,130.41,10.34683641]
[1765470211540,0.04948983,130.43,130.42,3.39]
[1765470211839,0.04948983,130.43,130.41,10.34683641]
[1765470212040,0.04948983,130.43,130.41,3.44623641]
[1765470214230,3.24,130.48,130.45,3.39]
[1765470214638,3.24,130.48,130.44,10.2888]
[1765470214835,3.24,130.48,130.45,6.8984]
[1765470215035,3.24,130.48,130.45,10.2884]
[1765470215436,3.24,130.48,130.45,10.33680557]
[1765470215639,3.24,130.51,130.46,3.39]
[1765470215838,3.24,130.51,130.44,107.317]
[1765470215839,3.24,130.51,130.47,0.05912352]
[1765470216944,3.24,130.5,130.47,0.05912352]
[1765470218039,3.24,130.48,130.47,0.05912352]
[1765470219352,3.24,130.5,130.47,0.05912352]
[1765470219940,10.136,130.5,130.47,0.05912352]
[1765470220241,3.24,130.49,130.47,0.05912352]
[1765470221442,3.24,130.51,130.47,3.44912352]
[1765470221646,68.4,130.52,130.47,3.44912352]
[1765470222043,3.24,130.51,130.47,10.34632352]
[1765470222235,3.24,130.51,130.48,3.39]
[1765470222434,3.24,130.51,130.47,0.05912352]
[1765470223240,10.1356,130.51,130.47,3.44912352]
[1765470223441,3.24,130.51,130.47,3.44912352]
[1765470224351,68.4,130.52,130.48,10.2869]
[1765470224943,68.4,130.52,130.49,3.39]
[1765470225145,65.16,130.52,130.49,3.39]
[1765470225447,68.4,130.52,130.49,3.39]
[1765470226051,3.24,130.51,130.47,3.44912352]
[1765470227048,3.24,130.51,130.47,0.05912352]
[1765470227241,3.24,130.51,130.47,3.44912352]
[1765470227850,10.1355,130.51,130.47,3.44912352]
[1765470228047,3.24,130.5,130.47,3.44912352]
[1765470229255,10.1361,130.5,130.47,0.05912352]
[1765470230250,10.0165,130.49,130.47,0.05912352]
[1765470231652,3.12,130.48,130.47,0.05912352]
[1765470232750,10.0159,130.51,130.47,3.46912352]
[1765470232946,3.12,130.5,130.47,3.46912352]
[1765470235465,3.12,130.52,130.48,6.8969]
[1765470235657,3.12,130.52,130.49,3.41]
[1765470235963,3.12,130.52,130.48,3.41]
[1765470236352,3.12,130.51,130.48,3.41]
[1765470237459,68.26,130.56,130.48,3.41]
[1765470237654,3.12,130.55,130.51,3.45895382]
[1765470238862,3.12,130.55,130.51,0.04895382]
[1765470238863,6.8934,130.55,130.51,0.04895382]
[1765470239162,3.12,130.54,130.51,3.45895382]
[1765470239561,10.014,130.54,130.51,0.04895382]
[1765470240063,3.12,130.53,130.51,0.04895382]
[1765470242159,10.0147,130.53,130.51,0.04895382]
[1765470242359,3.12,130.52,130.51,0.04895382]
[1765470243061,3.12,130.52,130.46,6.8977]
[1765470243362,6.40479737,130.49,130.45,6.69479737]
[1765470243761,3.12,130.48,130.45,6.69479737]
[1765470244268,3.1749308,130.48,130.45,13.64780065]
[1765470244460,3.1749308,130.48,130.45,10.36300328]
[1765470245366,3.1749308,130.48,130.45,0.05450328]
[1765470245566,3.12,130.47,130.45,0.05450328]
[1765470248772,0.0549308,130.48,130.46,3.41]
[1765470248978,0.0549308,130.48,130.47,3.41]
[1765470249668,68.24,130.52,130.47,3.41]
[1765470249971,3.12,130.51,130.47,3.41]
[1765470250270,3.12,130.51,130.49,6.8962]
[1765470250469,3.12,130.51,130.47,3.41]
[1765470250765,65.12,130.52,130.49,3.41]
[1765470250965,68.24,130.52,130.5,6.8959]
[1765470251160,3.12,130.51,130.48,0.05286328]
[1765470251564,3.12,130.5,130.48,0.05286328]
[1765470253165,6.67479737,130.51,130.48,3.37286328]
[1765470253468,6.67479737,130.51,130.48,0.05286328]
[1765470253876,3.39,130.5,130.48,0.05286328]
[1765470255876,3.39,130.5,130.48,6.94986328]
[1765470258571,3.39,130.5,130.48,0.05286328]
[1765470258873,65.12,130.52,130.49,6.39479737]
[1765470259074,3.36,130.51,130.49,10.0063]
[1765470259279,3.36,130.51,130.48,0.05286328]
[1765470260578,3.36,130.49,130.48,0.05286328]
[1765470262068,6.64479737,130.49,130.48,0.05286328]
[1765470262779,3.36,130.49,130.48,0.05286328]
[1765470271582,3.36,130.5,130.48,3.16286328]
[1765470272871,3.36,130.5,130.48,10.05986328]
[1765470273978,3.36,130.5,130.48,0.05286328]
[1765470275378,3.36,130.5,130.48,3.16286328]
[1765470275581,3.36,130.51,130.48,10.05966328]
[1765470276382,3.36,130.53,130.5,3.11]
[1765470276689,3.36,130.53,130.5,3.16738236]
[1765470276988,3.36,130.53,130.5,10.06318236]
[1765470277987,3.36,130.53,130.5,0.05738236]
[1765470278493,3.36,130.51,130.5,0.05738236]
[1765470278996,75.3942,130.54,130.5,3.16738236]
[1765470279198,3.36,130.53,130.5,3.16738236]
[1765470279489,3.36,130.52,130.5,3.16738236]
[1765470279696,3.36,130.52,130.5,0.05738236]
[1765470280487,6.8944,130.53,130.5,3.16738236]
[1765470280689,68.5,130.54,130.5,3.16738236]
[1765470281195,3.36,130.53,130.5,10.06328236]
[1765470282698,3.36,130.56,130.52,3.11]
[1765470282894,3.36,130.56,130.53,0.04891885]
[1765470283596,3.36,130.55,130.53,0.04891885]
[1765470284794,3.36,130.57,130.53,3.15891885]
[1765470284987,65.12,130.58,130.55,3.11]
[1765470285195,3.36,130.6,130.55,10.0031]
[1765470285389,3.36,130.6,130.56,0.05284538]
[1765470286299,3.36,130.6,130.56,3.16284538]
[1765470286498,3.36,130.6,130.56,0.05284538]
[1765470286699,3.36,130.59,130.56,0.05284538]
[1765470287700,3.36,130.59,130.56,3.16284538]
[1765470288092,3.36,130.59,130.56,0.05284538]
[1765470289205,3.17,130.61,130.56,3.16284538]
[1765470290699,68.29,130.62,130.59,3.11]
[1765470291008,65.12,130.62,130.59,3.15971428]
[1765470291207,3.17,130.64,130.59,3.15971428]
[1765470292295,3.17,130.68,130.64,3.11]
[1765470292492,3.17,130.68,130.65,0.05711759]
[1765470292904,3.17,130.67,130.65,0.05711759]
[1765470293595,3.17,130.64,130.57,5.13131371]
[1765470293798,3.17,130.64,130.57,8.24131371]
[1765470294205,3.17,130.63,130.57,3.11]
[1765470294398,3.17,130.62,130.55,8.24131371]
[1765470294708,3.21922177,130.6,130.57,0.04879603]
[1765470295808,3.17,130.59,130.57,0.04879603]
[1765470297209,6.94012177,130.6,130.57,3.15879603]
[1765470297508,0.04922177,130.6,130.57,3.15879603]
[1765470300607,3.21922177,130.6,130.57,3.15879603]
[1765470301102,3.17,130.58,130.57,0.04879603]
[1765470301508,3.17,130.58,130.52,3.11]
[1765470301707,3.17,130.56,130.52,3.11]
[1765470302102,3.17,130.59,130.53,3.11]
[1765470302498,0.05641543,130.57,130.55,0.05501977]
[1765470302709,3.22641543,130.57,130.55,0.05501977]
[1765470304304,3.22641543,130.57,130.55,3.16501977]
[1765470304305,0.05641543,130.57,130.55,3.16501977]
[1765470305408,3.22641543,130.57,130.55,0.05501977]
[1765470305609,3.17,130.56,130.55,0.05501977]